[Event "Schack-SM 2022: Sverigemastarklassen"]
[Site "Fyrishov, Idrottsgatan 2, Uppsala, Sweden"]
[Date "2022.07.08"]
[Round "7.2"]
[White "Johansson, Linus"]
[Black "Hillarp, Tiger"]
[Result "0-1"]
[TimeControl "90 minutes for 40 moves + 30 minutes for the rest of the game + 30 seconds per move from move one."]
[WhiteTitle "IM"]
[BlackTitle "GM"]
[WhiteFideId "1711113"]
[BlackFideId "1700812"]
[WhiteElo "2468"]
[BlackElo "2516"]

1. d4 {[%clk 01:30:55]} {[%emt 00:00:04]} Nf6 {[%clk 01:30:54]} {[%emt
00:00:07]} 2. c4 {[%clk 01:31:21]} {[%emt 00:00:04]} e6 {[%clk 01:31:18]}
{[%emt 00:00:07]} 3. Nc3 {[%clk 01:31:46]} {[%emt 00:00:05]} Bb4 {[%clk
01:31:43]} {[%emt 00:00:04]} 4. e3 {[%clk 01:32:12]} {[%emt 00:00:05]} O-O
{[%clk 01:32:05]} {[%emt 00:00:08]} 5. a3 {[%clk 01:32:39]} {[%emt 00:00:03]}
Bxc3+ {[%clk 01:32:27]} {[%emt 00:00:08]} 6. bxc3 {[%clk 01:33:06]} {[%emt
00:00:03]} b6 {[%clk 01:23:11]} {[%emt 00:09:46]} 7. Bd3 {[%clk 01:31:41]}
{[%emt 00:01:55]} Bb7 {[%clk 01:22:57]} {[%emt 00:00:45]} 8. f3 {[%clk
01:32:04]} {[%emt 00:00:07]} Ba6 {[%clk 01:23:20]} {[%emt 00:00:07]} 9. e4
{[%clk 01:32:26]} {[%emt 00:00:07]} Ne8 {[%clk 01:23:30]} {[%emt 00:00:20]} 10.
Nh3 {[%clk 01:32:40]} {[%emt 00:00:15]} Nc6 {[%clk 01:23:51]} {[%emt 00:00:10]}
11. O-O {[%clk 01:32:10]} {[%emt 00:01:00]} Na5 {[%clk 01:21:05]} {[%emt
00:03:16]} 12. Qe2 {[%clk 01:32:19]} {[%emt 00:00:21]} f6 {[%clk 01:06:46]}
{[%emt 00:14:49]} 13. a4 {[%clk 01:25:14]} {[%emt 00:07:35]} c5 {[%clk
01:03:12]} {[%emt 00:04:04]} 14. Ba3 {[%clk 01:25:35]} {[%emt 00:00:09]} Rc8
{[%clk 01:00:45]} {[%emt 00:02:57]} 15. Nf2 {[%clk 01:23:36]} {[%emt 00:02:28]}
Rf7 {[%clk 00:45:05]} {[%emt 00:16:10]} 16. dxc5 {[%clk 01:10:39]} {[%emt
00:13:28]} Nb3 {[%clk 00:43:50]} {[%emt 00:01:45]} 17. Ra2 {[%clk 01:03:53]}
{[%emt 00:07:16]} Nxc5 {[%clk 00:43:44]} {[%emt 00:00:36]} 18. Bxc5 {[%clk
01:04:13]} {[%emt 00:00:10]} Rxc5 {[%clk 00:44:05]} {[%emt 00:00:09]} 19. a5
{[%clk 01:04:39]} {[%emt 00:00:04]} bxa5 {[%clk 00:43:04]} {[%emt 00:01:31]} 20.
Rfa1 {[%clk 00:57:43]} {[%emt 00:07:26]} Nd6 {[%clk 00:34:35]} {[%emt
00:08:59]} 21. Nd1 {[%clk 00:55:11]} {[%emt 00:03:01]} Bxc4 {[%clk 00:34:45]}
{[%emt 00:00:20]} 22. Bxc4 {[%clk 00:54:49]} {[%emt 00:00:53]} Nxc4 {[%clk
00:35:05]} {[%emt 00:00:10]} 23. Ne3 {[%clk 00:52:27]} {[%emt 00:02:51]} Nxe3
{[%clk 00:35:15]} {[%emt 00:00:21]} 24. Qxe3 {[%clk 00:52:52]} {[%emt
00:00:05]} Qc7 {[%clk 00:35:37]} {[%emt 00:00:07]} 25. Qd2 {[%clk 00:46:30]}
{[%emt 00:06:52]} f5 {[%clk 00:32:58]} {[%emt 00:03:10]} 26. c4 {[%clk
00:39:05]} {[%emt 00:07:56]} fxe4 {[%clk 00:32:22]} {[%emt 00:01:05]} 27. Rxa5
{[%clk 00:39:30]} {[%emt 00:00:05]} Rxa5 {[%clk 00:30:28]} {[%emt 00:02:24]} 28.
Qxa5 {[%clk 00:39:54]} {[%emt 00:00:05]} Qxa5 {[%clk 00:30:34]} {[%emt
00:00:25]} 29. Rxa5 {[%clk 00:40:21]} {[%emt 00:00:04]} exf3 {[%clk 00:30:53]}
{[%emt 00:00:10]} 30. g3 {[%clk 00:40:36]} {[%emt 00:00:15]} f2+ {[%clk
00:30:43]} {[%emt 00:00:39]} 31. Kf1 {[%clk 00:41:00]} {[%emt 00:00:06]} Kf8
{[%clk 00:20:56]} {[%emt 00:10:17]} 32. Rxa7 {[%clk 00:41:21]} {[%emt
00:00:09]} Ke8 {[%clk 00:20:41]} {[%emt 00:00:46]} 33. c5 {[%clk 00:41:22]}
{[%emt 00:00:29]} e5 {[%clk 00:13:56]} {[%emt 00:07:14]} 34. Rb7 {[%clk
00:27:55]} {[%emt 00:13:57]} Rf6 {[%clk 00:12:34]} {[%emt 00:01:52]} 35. Rb8+
{[%clk 00:25:05]} {[%emt 00:03:21]} Ke7 {[%clk 00:12:56]} {[%emt 00:00:08]} 36.
Rg8 {[%clk 00:25:30]} {[%emt 00:00:04]} Rf7 {[%clk 00:13:10]} {[%emt 00:00:16]}
37. Rc8 {[%clk 00:24:06]} {[%emt 00:01:54]} e4 {[%clk 00:09:44]} {[%emt
00:03:55]} 0-1

[Event "Schack-SM 2022: Sverigemastarklassen"]
[Site "Fyrishov, Idrottsgatan 2, Uppsala, Sweden"]
[Date "2022.07.08"]
[Round "7.3"]
[White "Carlsson, Ludvig"]
[Black "Westerberg, Jonathan"]
[Result "0-1"]
[TimeControl "90 minutes for 40 moves + 30 minutes for the rest of the game + 30 seconds per move from move one."]
[WhiteTitle "IM"]
[BlackTitle "GM"]
[WhiteFideId "1727010"]
[BlackFideId "1701754"]
[WhiteElo "2399"]
[BlackElo "2476"]

1. d4 {[%clk 01:30:54]} {[%emt 00:00:05]} Nf6 {[%clk 01:29:17]} {[%emt
00:01:44]} 2. Nf3 {[%clk 01:30:19]} {[%emt 00:01:05]} g6 {[%clk 01:29:04]}
{[%emt 00:00:43]} 3. c4 {[%clk 01:30:17]} {[%emt 00:00:31]} Bg7 {[%clk
01:29:23]} {[%emt 00:00:12]} 4. Nc3 {[%emt 00:00:25]} d5 {[%clk 01:29:48]} 5.
Bf4 {[%clk 01:27:59]} {[%emt 00:02:58]} O-O {[%clk 01:23:18]} {[%emt 00:07:00]}
6. e3 {[%clk 01:28:08]} {[%emt 00:00:20]} c5 {[%clk 01:21:14]} {[%emt
00:02:34]} 7. dxc5 {[%clk 01:28:11]} {[%emt 00:00:27]} Qa5 {[%clk 01:20:20]}
{[%emt 00:01:26]} 8. Rc1 {[%clk 01:28:25]} {[%emt 00:00:15]} dxc4 {[%clk
01:13:03]} {[%emt 00:07:47]} 9. Bxc4 {[%clk 01:28:31]} {[%emt 00:00:24]} Qxc5
{[%clk 01:11:50]} {[%emt 00:01:42]} 10. Bb3 {[%clk 01:28:42]} {[%emt 00:00:19]}
Nc6 {[%clk 01:10:54]} {[%emt 00:01:26]} 11. O-O {[%clk 01:28:57]} {[%emt
00:00:15]} Qa5 {[%clk 01:08:37]} {[%emt 00:02:48]} 12. h3 {[%clk 01:28:59]}
{[%emt 00:00:28]} h6 {[%clk 01:02:10]} {[%emt 00:06:56]} 13. Bh2 {[%clk
01:18:56]} {[%emt 00:10:32]} e5 {[%clk 00:42:36]} {[%emt 00:20:05]} 14. Qe2
{[%clk 01:07:50]} {[%emt 00:11:35]} Re8 {[%clk 00:40:25]} {[%emt 00:02:43]} 15.
Nd2 {[%clk 01:06:33]} {[%emt 00:01:47]} Be6 {[%clk 00:37:19]} {[%emt 00:03:36]}
16. Rfd1 {[%clk 00:59:44]} {[%emt 00:07:19]} Bxb3 {[%clk 00:36:10]} {[%emt
00:01:39]} 17. Nxb3 {[%clk 00:59:55]} {[%emt 00:00:19]} Qb4 {[%clk 00:36:10]}
{[%emt 00:00:30]} 18. Nd5 {[%clk 00:53:55]} {[%emt 00:06:29]} Nxd5 {[%clk
00:34:31]} {[%emt 00:02:11]} 19. Rxd5 {[%clk 00:54:16]} {[%emt 00:00:08]} Rad8
{[%clk 00:28:15]} {[%emt 00:06:45]} 20. Rb5 {[%clk 00:50:09]} {[%emt 00:04:38]}
Qe7 {[%clk 00:28:20]} {[%emt 00:00:25]} 21. Bg3 {[%clk 00:50:11]} {[%emt
00:00:28]} a6 {[%clk 00:24:20]} {[%emt 00:04:30]} 22. Rbc5 {[%clk 00:49:07]}
{[%emt 00:01:34]} Rd7 {[%clk 00:23:52]} {[%emt 00:00:59]} 23. a3 {[%clk
00:47:34]} {[%emt 00:02:03]} Qe6 {[%clk 00:20:00]} {[%emt 00:04:21]} 24. Rxc6
{[%clk 00:45:44]} {[%emt 00:02:20]} Qxb3 {[%clk 00:20:21]} {[%emt 00:00:10]} 25.
R6c3 {[%clk 00:45:42]} {[%emt 00:00:30]} Qb6 {[%clk 00:19:05]} {[%emt
00:01:47]} 26. e4 {[%clk 00:43:30]} {[%emt 00:02:42]} Red8 {[%clk 00:18:18]}
{[%emt 00:01:18]} 27. Rc8 {[%clk 00:43:45]} {[%emt 00:00:15]} Kh7 {[%clk
00:15:38]} {[%emt 00:03:10]} 28. Rxd8 {[%clk 00:43:51]} {[%emt 00:00:23]} Qxd8
{[%clk 00:16:02]} {[%emt 00:00:06]} 29. Rc5 {[%clk 00:40:26]} {[%emt 00:03:55]}
h5 {[%clk 00:13:15]} {[%emt 00:03:17]} 30. h4 {[%clk 00:37:55]} {[%emt
00:03:01]} Bf6 {[%clk 00:10:01]} {[%emt 00:03:44]} 31. Bxe5 {[%clk 00:35:57]}
{[%emt 00:02:29]} Rd1+ {[%clk 00:09:54]} {[%emt 00:00:36]} 32. Kh2 {[%clk
00:36:12]} {[%emt 00:00:15]} Bxe5+ {[%clk 00:10:20]} {[%emt 00:00:04]} 33. Rxe5
{[%clk 00:36:37]} {[%emt 00:00:05]} Qxh4# {[%clk 00:10:48]} {[%emt 00:00:03]}
0-1

[Event "Schack-SM 2022: Sverigemastarklassen"]
[Site "Fyrishov, Idrottsgatan 2, Uppsala, Sweden"]
[Date "2022.07.07"]
[Round "6.1"]
[White "Westerberg, Jonathan"]
[Black "Johansson, Linus"]
[Result "1/2-1/2"]
[TimeControl "90 minutes for 40 moves + 30 minutes for the rest of the game + 30 seconds per move from move one."]
[WhiteTitle "GM"]
[BlackTitle "IM"]
[WhiteFideId "1701754"]
[BlackFideId "1711113"]
[WhiteElo "2476"]
[BlackElo "2468"]

1. Nf3 {[%clk 01:30:56]} {[%emt 00:00:02]} d5 {[%clk 01:30:44]} {[%emt
00:00:17]} 2. c4 {[%clk 01:31:20]} {[%emt 00:00:06]} e6 {[%clk 01:31:08]}
{[%emt 00:00:06]} 3. g3 {[%clk 01:31:47]} {[%emt 00:00:03]} Nf6 {[%clk
01:31:30]} {[%emt 00:00:07]} 4. Bg2 {[%clk 01:32:12]} {[%emt 00:00:06]} d4
{[%clk 01:31:36]} {[%emt 00:00:23]} 5. O-O {[%clk 01:31:49]} {[%emt 00:00:54]}
c5 {[%clk 01:32:02]} {[%emt 00:00:05]} 6. e3 {[%clk 01:31:41]} {[%emt
00:00:38]} Nc6 {[%clk 01:32:25]} {[%emt 00:00:06]} 7. exd4 {[%clk 01:31:34]}
{[%emt 00:00:37]} cxd4 {[%clk 01:32:48]} {[%emt 00:00:07]} 8. d3 {[%clk
01:32:01]} {[%emt 00:00:04]} Bd6 {[%clk 01:32:55]} {[%emt 00:00:22]} 9. Na3
{[%clk 01:30:31]} {[%emt 00:02:00]} O-O {[%clk 01:29:57]} {[%emt 00:03:28]} 10.
Nc2 {[%clk 01:30:57]} {[%emt 00:00:05]} e5 {[%clk 01:28:45]} {[%emt 00:01:41]}
11. Rb1 {[%clk 01:24:12]} {[%emt 00:07:15]} Rb8 {[%clk 01:23:33]} {[%emt
00:05:42]} 12. Bg5 {[%clk 01:21:59]} {[%emt 00:02:43]} h6 {[%clk 01:20:49]}
{[%emt 00:03:14]} 13. Bxf6 {[%clk 01:22:02]} {[%emt 00:00:27]} Qxf6 {[%clk
01:21:13]} {[%emt 00:00:06]} 14. b4 {[%clk 01:21:53]} {[%emt 00:00:40]} Bg4
{[%clk 01:16:14]} {[%emt 00:05:28]} 15. a3 {[%clk 01:14:23]} {[%emt 00:08:00]}
Rbd8 {[%clk 01:03:49]} {[%emt 00:12:55]} 16. Nce1 {[%clk 01:11:13]} {[%emt
00:03:40]} e4 {[%clk 00:41:04]} {[%emt 00:23:15]} 17. dxe4 {[%clk 01:10:18]}
{[%emt 00:01:26]} d3 {[%clk 00:41:29]} {[%emt 00:00:05]} 18. h3 {[%clk
01:05:14]} {[%emt 00:05:34]} Bh5 {[%clk 00:36:16]} {[%emt 00:05:41]} 19. Qd2
{[%clk 01:05:19]} {[%emt 00:00:26]} Rfe8 {[%clk 00:34:30]} {[%emt 00:02:16]} 20.
c5 {[%clk 01:03:33]} {[%emt 00:02:16]} Bf8 {[%clk 00:30:44]} {[%emt 00:04:16]}
21. Rb3 {[%clk 01:01:07]} {[%emt 00:02:57]} Bg6 {[%clk 00:24:36]} {[%emt
00:06:37]} 22. Rxd3 {[%clk 00:57:38]} {[%emt 00:03:58]} Bxe4 {[%clk 00:24:55]}
{[%emt 00:00:12]} 23. Rxd8 {[%clk 00:57:01]} {[%emt 00:01:07]} Rxd8 {[%clk
00:25:19]} {[%emt 00:00:06]} 24. Qe3 {[%clk 00:56:58]} {[%emt 00:00:32]} Bh7
{[%clk 00:25:22]} {[%emt 00:00:28]} 25. Nd2 {[%clk 00:50:32]} {[%emt 00:06:56]}
a5 {[%clk 00:24:03]} {[%emt 00:01:49]} 26. Ne4 {[%clk 00:42:17]} {[%emt
00:08:45]} Qb2 {[%clk 00:19:15]} {[%emt 00:05:18]} 27. bxa5 {[%clk 00:38:15]}
{[%emt 00:04:32]} Nxa5 {[%clk 00:17:56]} {[%emt 00:01:49]} 28. Nd6 {[%clk
00:38:13]} {[%emt 00:00:33]} Bg6 {[%clk 00:16:57]} {[%emt 00:01:27]} 29. Nf3
{[%clk 00:36:46]} {[%emt 00:01:58]} Bxd6 {[%clk 00:13:48]} {[%emt 00:03:39]} 30.
cxd6 {[%clk 00:37:09]} {[%emt 00:00:07]} Rxd6 {[%clk 00:13:29]} {[%emt
00:00:49]} 31. Qc5 {[%clk 00:34:06]} {[%emt 00:03:30]} Qb6 {[%clk 00:13:32]}
{[%emt 00:00:30]} 32. Rc1 {[%clk 00:34:01]} {[%emt 00:00:36]} Qxc5 {[%clk
00:10:43]} {[%emt 00:03:19]} 33. Rxc5 {[%clk 00:34:27]} {[%emt 00:00:03]} Nc6
{[%clk 00:10:50]} {[%emt 00:00:23]} 34. Nh4 {[%clk 00:31:11]} {[%emt 00:03:46]}
Rd1+ {[%clk 00:09:14]} {[%emt 00:02:06]} 35. Kh2 {[%clk 00:31:34]} {[%emt
00:00:07]} Rd2 {[%clk 00:09:39]} {[%emt 00:00:05]} 36. Nxg6 {[%clk 00:30:59]}
{[%emt 00:01:05]} fxg6 {[%clk 00:10:00]} {[%emt 00:00:09]} 37. Bd5+ {[%clk
00:30:07]} {[%emt 00:01:22]} Kf8 {[%clk 00:09:11]} {[%emt 00:01:18]} 38. Kg2
{[%clk 00:21:21]} {[%emt 00:09:16]} Rd3 {[%clk 00:09:23]} {[%emt 00:00:18]} 39.
Rb5 {[%clk 00:19:45]} {[%emt 00:02:07]} Nd8 {[%clk 00:06:15]} {[%emt 00:03:37]}
40. a4 {[%clk 00:17:41]} {[%emt 00:02:35]} b6 {[%clk 00:06:22]} {[%emt
00:00:24]} 41. Be4 {[%clk 00:15:45]} {[%emt 00:02:24]} Rd6 {[%clk 00:06:45]}
{[%emt 00:00:08]} 42. Rd5 {[%clk 00:13:47]} {[%emt 00:02:28]} Rxd5 {[%clk
00:19:21]} {[%emt 00:17:55]} 43. Bxd5 {[%clk 00:43:54]} {[%emt 00:00:23]} Ke7
{[%clk 00:19:50]} {[%emt 00:00:01]} 44. Be4 {[%clk 00:39:20]} {[%emt 00:05:03]}
g5 {[%clk 00:19:57]} {[%emt 00:00:23]} 45. Kf3 {[%clk 00:38:04]} {[%emt
00:01:46]} Ne6 {[%clk 00:20:14]} {[%emt 00:00:12]} 46. Ke3 {[%clk 00:36:57]}
{[%emt 00:01:38]} Kd6 {[%clk 00:20:03]} {[%emt 00:00:41]} 47. Bf5 {[%clk
00:35:07]} {[%emt 00:02:19]} Ke5 {[%clk 00:18:16]} {[%emt 00:02:18]} 48. Bxe6
{[%clk 00:30:06]} {[%emt 00:05:30]} Kxe6 {[%clk 00:18:41]} {[%emt 00:00:06]} 49.
Ke4 {[%clk 00:30:13]} {[%emt 00:00:23]} g6 {[%clk 00:18:46]} {[%emt 00:00:25]}
50. f3 {[%clk 00:26:05]} {[%emt 00:04:38]} Kd6 {[%clk 00:19:03]} {[%emt
00:00:14]} 51. Kd4 {[%clk 00:21:23]} {[%emt 00:05:11]} Ke6 {[%clk 00:18:20]}
{[%emt 00:01:13]} 52. Kc4 {[%clk 00:12:18]} {[%emt 00:09:35]} Kd6 {[%clk
00:18:17]} {[%emt 00:00:33]} 53. Kd4 {[%clk 00:10:06]} {[%emt 00:02:42]} Kd5+
{[%clk 00:18:29]} {[%emt 00:01:51]} 1/2-1/2

[Event "Schack-SM 2022: Sverigemastarklassen"]
[Site "Fyrishov, Idrottsgatan 2, Uppsala, Sweden"]
[Date "2022.07.07"]
[Round "6.2"]
[White "Cramling, Pia"]
[Black "Seo, Jung Min"]
[Result "1/2-1/2"]
[TimeControl "90 minutes for 40 moves + 30 minutes for the rest of the game + 30 seconds per move from move one."]
[WhiteTitle "GM"]
[BlackTitle "IM"]
[WhiteFideId "1700030"]
[BlackFideId "1734687"]
[WhiteElo "2459"]
[BlackElo "2492"]

1. d4 {[%clk 01:30:53]} {[%emt 00:00:07]} Nf6 {[%clk 01:30:56]} {[%emt
00:00:05]} 2. c4 {[%clk 01:31:13]} {[%emt 00:00:09]} e6 {[%clk 01:31:25]}
{[%emt 00:00:02]} 3. Nf3 {[%clk 01:31:30]} {[%emt 00:00:12]} d5 {[%clk
01:31:53]} {[%emt 00:00:02]} 4. Nc3 {[%clk 01:31:16]} {[%emt 00:00:44]} Bb4
{[%clk 01:32:16]} {[%emt 00:00:08]} 5. Bg5 {[%clk 01:31:07]} {[%emt 00:00:38]}
h6 {[%clk 01:32:32]} {[%emt 00:00:15]} 6. Bxf6 {[%clk 01:31:02]} {[%emt
00:00:34]} Qxf6 {[%clk 01:32:59]} {[%emt 00:00:03]} 7. Qb3 {[%clk 01:29:51]}
{[%emt 00:01:41]} c5 {[%clk 01:31:39]} {[%emt 00:01:50]} 8. cxd5 {[%clk
01:28:59]} {[%emt 00:01:22]} exd5 {[%clk 01:32:05]} {[%emt 00:00:05]} 9. e3
{[%clk 01:29:06]} {[%emt 00:00:23]} O-O {[%clk 01:32:23]} {[%emt 00:00:12]} 10.
dxc5 {[%clk 01:28:23]} {[%emt 00:01:13]} Bxc3+ {[%clk 01:32:44]} {[%emt
00:00:09]} 11. Qxc3 {[%clk 01:28:38]} {[%emt 00:00:14]} Qxc3+ {[%clk 01:33:11]}
{[%emt 00:00:04]} 12. bxc3 {[%clk 01:29:02]} {[%emt 00:00:05]} Nd7 {[%clk
01:33:27]} {[%emt 00:00:14]} 13. c6 {[%clk 01:17:45]} {[%emt 00:11:47]} bxc6
{[%clk 01:33:43]} {[%emt 00:00:14]} 14. c4 {[%clk 01:18:02]} {[%emt 00:00:13]}
dxc4 {[%clk 01:29:18]} {[%emt 00:04:55]} 15. Bxc4 {[%clk 01:18:23]} {[%emt
00:00:09]} Nb6 {[%clk 01:29:02]} {[%emt 00:00:47]} 16. Bb3 {[%clk 01:10:56]}
{[%emt 00:07:56]} Bf5 {[%clk 01:21:39]} {[%emt 00:07:52]} 17. Rc1 {[%clk
01:03:46]} {[%emt 00:07:41]} Be4 {[%clk 01:19:33]} {[%emt 00:02:36]} 18. O-O
{[%clk 01:03:12]} {[%emt 00:01:04]} Rac8 {[%clk 01:17:05]} {[%emt 00:02:57]} 19.
Rc5 {[%clk 01:00:10]} {[%emt 00:03:32]} Bxf3 {[%clk 01:14:53]} {[%emt
00:02:44]} 20. gxf3 {[%clk 01:00:33]} {[%emt 00:00:07]} Rc7 {[%clk 01:11:26]}
{[%emt 00:03:57]} 21. Rfc1 {[%clk 00:54:25]} {[%emt 00:06:37]} Rfc8 {[%clk
01:11:52]} {[%emt 00:00:04]} 22. f4 {[%clk 00:54:27]} {[%emt 00:00:28]} Nd7
{[%clk 01:10:57]} {[%emt 00:01:26]} 23. Rf5 {[%clk 00:47:26]} {[%emt 00:07:30]}
Nb6 {[%clk 01:10:29]} {[%emt 00:00:58]} 24. Rfc5 {[%clk 00:45:10]} {[%emt
00:02:45]} Nd7 {[%clk 01:10:53]} {[%emt 00:00:07]} 25. Rf5 {[%clk 00:43:24]}
{[%emt 00:02:15]} Nb6 {[%clk 01:11:20]} {[%emt 00:00:05]} 26. Rfc5 {[%clk
00:43:31]} {[%emt 00:00:22]} Nd7 {[%clk 01:11:44]} {[%emt 00:00:06]} 27. Rf5
{[%clk 00:42:35]} {[%emt 00:01:27]} 1/2-1/2

[Event "Schack-SM 2022: Sverigemastarklassen"]
[Site "Fyrishov, Idrottsgatan 2, Uppsala, Sweden"]
[Date "2022.07.07"]
[Round "6.3"]
[White "Hillarp, Tiger"]
[Black "Smith, Axel"]
[Result "1-0"]
[TimeControl "90 minutes for 40 moves + 30 minutes for the rest of the game + 30 seconds per move from move one."]
[WhiteTitle "GM"]
[BlackTitle "GM"]
[WhiteFideId "1700812"]
[BlackFideId "1707930"]
[WhiteElo "2516"]
[BlackElo "2417"]

1. c4 {[%clk 01:30:36]} {[%emt 00:00:24]} e6 {[%clk 01:30:27]} {[%emt
00:00:33]} 2. d4 {[%clk 01:29:50]} {[%emt 00:01:16]} d5 {[%clk 01:30:40]}
{[%emt 00:00:17]} 3. Nc3 {[%clk 01:29:49]} {[%emt 00:00:31]} c5 {[%clk
01:31:07]} {[%emt 00:00:04]} 4. cxd5 {[%clk 01:29:12]} {[%emt 00:01:06]} exd5
{[%clk 01:31:34]} {[%emt 00:00:03]} 5. Nf3 {[%clk 01:29:02]} {[%emt 00:00:40]}
Nc6 {[%clk 01:31:34]} {[%emt 00:00:30]} 6. g3 {[%clk 01:26:06]} {[%emt
00:03:26]} Nf6 {[%clk 01:31:47]} {[%emt 00:00:18]} 7. Bg2 {[%clk 01:26:29]}
{[%emt 00:00:06]} cxd4 {[%clk 01:31:59]} {[%emt 00:00:19]} 8. Nxd4 {[%clk
01:26:50]} {[%emt 00:00:09]} Bc5 {[%clk 01:32:19]} {[%emt 00:00:10]} 9. Nxc6
{[%clk 00:59:53]} {[%emt 00:27:27]} bxc6 {[%clk 01:32:47]} {[%emt 00:00:03]} 10.
O-O {[%clk 01:00:12]} {[%emt 00:00:09]} O-O {[%clk 01:32:34]} {[%emt 00:00:43]}
11. Na4 {[%clk 00:59:08]} {[%emt 00:01:35]} Bb6 {[%clk 01:32:37]} {[%emt
00:00:26]} 12. b3 {[%clk 00:53:37]} {[%emt 00:06:02]} Re8 {[%clk 01:26:07]}
{[%emt 00:06:59]} 13. Nxb6 {[%clk 00:47:17]} {[%emt 00:06:51]} axb6 {[%clk
01:25:17]} {[%emt 00:01:20]} 14. Bb2 {[%clk 00:47:26]} {[%emt 00:00:20]} Bf5
{[%clk 01:16:36]} {[%emt 00:09:11]} 15. Re1 {[%clk 00:42:07]} {[%emt 00:05:48]}
Be4 {[%clk 01:06:46]} {[%emt 00:10:21]} 16. f3 {[%clk 00:41:40]} {[%emt
00:00:57]} Bg6 {[%clk 01:06:46]} {[%emt 00:00:31]} 17. a4 {[%clk 00:41:28]}
{[%emt 00:00:42]} c5 {[%clk 01:03:41]} {[%emt 00:03:34]} 18. e3 {[%clk
00:40:03]} {[%emt 00:01:55]} Ra7 {[%clk 00:52:27]} {[%emt 00:11:44]} 19. Qd2
{[%clk 00:38:19]} {[%emt 00:02:13]} h5 {[%clk 00:51:33]} {[%emt 00:01:26]} 20.
b4 {[%clk 00:33:34]} {[%emt 00:05:15]} Qa8 {[%clk 00:19:28]} {[%emt 00:32:35]}
21. a5 {[%clk 00:27:15]} {[%emt 00:06:48]} bxa5 {[%clk 00:19:43]} {[%emt
00:00:15]} 22. bxc5 {[%clk 00:26:30]} {[%emt 00:01:15]} a4 {[%clk 00:20:10]}
{[%emt 00:00:04]} 23. Ra3 {[%clk 00:23:32]} {[%emt 00:03:27]} Rb8 {[%clk
00:19:50]} {[%emt 00:00:50]} 24. Bd4 {[%clk 00:09:57]} {[%emt 00:14:05]} Rb3
{[%clk 00:16:16]} {[%emt 00:04:04]} 25. Rea1 {[%clk 00:09:14]} {[%emt
00:01:13]} Rxa3 {[%clk 00:07:42]} {[%emt 00:09:04]} 26. Rxa3 {[%clk 00:09:36]}
{[%emt 00:00:08]} Bf5 {[%clk 00:07:49]} {[%emt 00:00:23]} 27. Bf1 {[%clk
00:06:52]} {[%emt 00:03:14]} Qc6 {[%clk 00:07:39]} {[%emt 00:00:41]} 28. Qb4
{[%clk 00:06:35]} {[%emt 00:00:47]} Bc8 {[%clk 00:03:25]} {[%emt 00:04:43]} 29.
Bb5 {[%clk 00:04:31]} {[%emt 00:02:34]} Qe6 {[%clk 00:03:54]} {[%emt 00:00:01]}
30. Rxa4 {[%clk 00:04:43]} {[%emt 00:00:18]} Rxa4 {[%clk 00:04:20]} {[%emt
00:00:04]} 31. Qxa4 {[%clk 00:04:56]} {[%emt 00:00:17]} h4 {[%clk 00:04:45]}
{[%emt 00:00:06]} 32. Bf1 {[%clk 00:04:13]} {[%emt 00:01:12]} hxg3 {[%clk
00:03:19]} {[%emt 00:01:57]} 33. hxg3 {[%clk 00:04:35]} {[%emt 00:00:07]} Nh5
{[%clk 00:03:39]} {[%emt 00:00:10]} 34. g4 {[%clk 00:04:29]} {[%emt 00:00:36]}
Ng3 {[%clk 00:03:36]} {[%emt 00:00:33]} 35. Bd3 {[%clk 00:04:43]} {[%emt
00:00:17]} Ne4 {[%clk 00:00:36]} {[%emt 00:03:30]} 36. fxe4 {[%clk 00:02:19]}
{[%emt 00:02:53]} Qxg4+ {[%clk 00:00:59]} {[%emt 00:00:08]} 37. Kf2 {[%clk
00:02:34]} {[%emt 00:00:14]} Qh4+ {[%clk 00:01:04]} {[%emt 00:00:25]} 38. Ke2
{[%clk 00:02:42]} {[%emt 00:00:22]} Bg4+ {[%clk 00:00:47]} {[%emt 00:00:47]} 39.
Kd2 {[%clk 00:03:02]} {[%emt 00:00:10]} dxe4 {[%clk 00:00:32]} {[%emt
00:00:46]} 40. Qe8+ {[%clk 00:02:47]} {[%emt 00:00:44]} Kh7 {[%clk 00:01:00]}
{[%emt 00:00:02]} 41. Qxf7 {[%clk 00:02:16]} {[%emt 00:01:01]} exd3 {[%clk
00:00:32]} {[%emt 00:00:58]} 42. Qxg7# {[%clk 00:01:41]} {[%emt 00:00:33]} 1-0